bitfinex/quotes_SOLUSD_20251119
["timestamp","ask_amount","ask_price","bid_price","bid_amount"]
[1763574711557,11.20944027,132.22,132.21,1.82]
[1763574711944,18.77259259,132.22,132.21,1.82]
[1763574712340,11.20944027,132.22,132.21,1.82]
[1763574712547,18.77259259,132.22,132.21,1.82]
[1763574712745,1.82,132.27,132.21,1.82]
[1763574712955,11.20944027,132.24,132.21,3.81999999]
[1763574713661,18.12096,132.26,132.21,3.81999999]
[1763574713957,18.7714663,132.24,132.21,3.81999999]
[1763574714537,37.67648747,132.24,132.21,3.81999999]
[1763574714735,11.20944027,132.23,132.21,3.81999999]
[1763574715060,18.77150995,132.24,132.21,4.49999999]
[1763574715665,18.77089003,132.25,132.22,1.99999999]
[1763574717056,8.26144976,132.25,132.22,1.99999999]
[1763574717241,19.47089003,132.25,132.22,1.99999999]
[1763574717443,11.20944027,132.24,132.22,1.99999999]
[1763574717956,27.16504144,132.25,132.22,1.99999999]
[1763574717957,11.20944027,132.23,132.22,1.99999999]
[1763574718136,18.77202062,132.23,132.22,1.82]
[1763574718341,18.77202062,132.23,132.2,1.99999999]
[1763574718566,0.7,132.22,132.21,1.82]
[1763574718744,11.90944027,132.22,132.21,1.82]
[1763574719446,7.56258035,132.23,132.21,1.82]
[1763574719636,11.20944027,132.22,132.21,1.82]
[1763574720148,18.77259259,132.22,132.21,1.82]
[1763574720455,11.20944027,132.22,132.21,1.82]
[1763574720655,0.7,132.27,132.21,2.5]
[1763574720840,0.7,132.27,132.21,4.49999999]
[1763574720841,11.20944027,132.25,132.21,4.49999999]
[1763574721040,11.20944027,132.25,132.23,1.99999999]
[1763574721252,11.20944027,132.24,132.23,1.99999999]
[1763574721472,11.20944027,132.25,132.23,1.99999999]
[1763574721766,25.6807402,132.28,132.24,0.68]
[1763574721980,17.20421468,132.39,132.27,1.99999999]
[1763574721981,0.7,132.33,132.27,1.99999999]
[1763574722136,0.7,132.33,132.28,1.99999999]
[1763574722335,11.20944027,132.31,132.29,1.82]
[1763574722567,11.20944027,132.32,132.29,1.82]
[1763574722817,11.20944027,132.3,132.29,1.82]
[1763574723145,11.90944027,132.3,132.27,1.82]
[1763574723372,11.20944027,132.28,132.27,1.82]
[1763574723561,18.12096,132.3,132.27,1.82]
[1763574723743,0.7,132.37,132.3,1.99999999]
[1763574724066,11.20944027,132.35,132.31,3.81999999]
[1763574724247,11.20944027,132.34,132.31,3.81999999]
[1763574724446,11.20944027,132.35,132.31,4.49999999]
[1763574724668,26.37611261,132.36,132.31,4.49999999]
[1763574724669,11.20944027,132.34,132.32,1.99999999]
[1763574724871,11.20944027,132.34,132.33,1.99999999]
[1763574725073,0.7,132.34,132.33,1.82]
[1763574725367,26.44303414,132.36,132.33,1.82]
[1763574725567,11.20944027,132.35,132.33,1.82]
[1763574725750,11.20944027,132.34,132.33,1.82]
[1763574726269,18.76573466,132.34,132.33,1.82]
[1763574726688,7.55530185,132.36,132.33,1.82]
[1763574726994,11.20944027,132.35,132.33,1.82]
[1763574727164,56.00468946,132.45,132.33,1.82]
[1763574727165,0.7,132.43,132.37,1.99999999]
[1763574727473,11.20944027,132.43,132.4,1.99999999]
[1763574727675,11.20944027,132.48,132.4,1.99999999]
[1763574727676,11.20944027,132.42,132.4,1.99999999]
[1763574727870,11.20944027,132.41,132.39,1.99999999]
[1763574728069,11.20944027,132.41,132.4,3.81999999]
[1763574728687,11.20944027,132.41,132.4,1.82]
[1763574729057,18.76156712,132.42,132.4,1.82]
[1763574729254,11.20944027,132.41,132.4,3.81999999]
[1763574729884,18.76173994,132.41,132.4,1.82]
[1763574730054,11.20944027,132.42,132.4,1.82]
[1763574730258,0.7,132.46,132.41,2.67999999]
[1763574730459,11.20944027,132.45,132.43,1.99999999]
[1763574730687,11.20944027,132.46,132.44,1.82]
[1763574730864,45.34020057,132.48,132.44,1.82]
[1763574730865,0.1,132.48,132.45,1.99999999]
[1763574731059,14.77928119,132.48,132.44,4.49999999]
[1763574731255,14.77928119,132.48,132.45,3.81999999]
[1763574731256,0.1,132.48,132.45,3.81999999]
[1763574731467,0.1,132.48,132.47,1.99999999]
[1763574731758,0.1,132.48,132.47,27.93179752]
[1763574731987,0.7,132.55,132.47,37.72062521]
[1763574732190,7.54432289,132.55,132.53,1.99999999]
[1763574732497,7.13083753,132.54,132.53,3.81999999]
[1763574732677,7.13083753,132.54,132.52,1.99999999]
[1763574732874,7.13083753,132.53,132.51,1.82]
[1763574733083,7.13083753,132.52,132.5,1.99999999]
[1763574733415,7.13083753,132.53,132.5,1.99999999]
[1763574733706,7.13083753,132.51,132.5,1.99999999]
[1763574733869,7.13083753,132.51,132.5,3.81999999]
[1763574734193,7.13083753,132.55,132.53,1.99999999]
[1763574734403,7.13083753,132.55,132.52,1.99999999]
[1763574734404,7.13083753,132.54,132.52,1.99999999]
[1763574734610,7.13083753,132.55,132.53,1.99999999]
[1763574734980,7.83083753,132.54,132.52,1.99999999]
[1763574735281,7.13083753,132.53,132.52,1.99999999]
[1763574735462,7.13083753,132.53,132.5,3.81999999]
[1763574735665,7.13083753,132.51,132.48,1.99999999]
[1763574735864,0.7,132.52,132.45,0.68]
[1763574735865,7.13083753,132.49,132.47,3.81999999]
[1763574736066,0.7,132.51,132.46,1.99999999]
[1763574736291,26.41509433,132.5,132.47,1.99999999]
[1763574736787,27.11509433,132.5,132.47,1.99999999]
[1763574737006,0.7,132.5,132.47,1.99999999]
[1763574737311,27.90978769,132.54,132.49,1.99999999]
[1763574737312,36.15500629,132.54,132.49,1.99999999]
[1763574737474,7.13083753,132.52,132.49,1.99999999]
[1763574737864,7.54428298,132.56,132.51,1.99999999]
[1763574738172,7.13083753,132.54,132.53,1.99999999]
[1763574738476,26.40126609,132.57,132.53,1.99999999]
[1763574738477,0.7,132.56,132.53,1.99999999]
[1763574738796,7.13083753,132.54,132.53,1.99999999]
[1763574739001,7.13083753,132.54,132.5,1.99999999]
[1763574739210,7.13083753,132.51,132.5,1.99999999]
[1763574739773,7.13083753,132.51,132.49,1.99999999]
[1763574740094,7.13083753,132.51,132.47,0.68]
[1763574740095,7.13083753,132.51,132.5,1.99999999]
[1763574740291,14.67743778,132.51,132.49,1.99999999]
[1763574740592,26.41310089,132.51,132.48,1.82]
[1763574740806,26.41310089,132.51,132.47,1.82]
[1763574740807,7.13083753,132.49,132.47,1.82]
[1763574740963,7.13083753,132.48,132.46,1.82]
[1763574741310,7.13083753,132.48,132.42,7.13083753]
[1763574741311,7.13083753,132.47,132.42,1.99999999]
[1763574741465,7.13083753,132.43,132.41,1.99999999]
[1763574741809,18.12096,132.46,132.38,7.13083753]
[1763574741810,9.78882769,132.45,132.42,1.99999999]
[1763574741982,7.13083753,132.43,132.42,1.99999999]
[1763574742167,7.13083753,132.43,132.39,2.49]
[1763574742168,7.13083753,132.43,132.39,1.82]
[1763574742368,7.13083753,132.41,132.39,3.81999999]
[1763574742906,8.20058894,132.44,132.41,1.99999999]
[1763574743114,8.20058894,132.44,132.39,1.82]
[1763574743115,7.13083753,132.42,132.39,1.82]
[1763574743410,7.13083753,132.43,132.41,1.99999999]
[1763574743712,7.13083753,132.44,132.42,1.99999999]
[1763574744115,7.78083753,132.43,132.41,1.99999999]
[1763574744402,7.55229967,132.41,132.36,4.48999999]
[1763574744607,7.13083753,132.39,132.36,4.48999999]
[1763574744779,7.13083753,132.37,132.36,3.81999999]
[1763574745102,7.13083753,132.37,132.35,1.99999999]
[1763574745286,7.82083753,132.4,132.35,1.99999999]
[1763574745287,7.13083753,132.36,132.35,1.99999999]
[1763574745515,7.13083753,132.39,132.36,2.65999999]
[1763574745903,7.13083753,132.39,132.37,1.99999999]
[1763574746419,38.44169189,132.45,132.39,1.99999999]
[1763574746601,7.55058894,132.44,132.4,2.65999999]
[1763574746801,7.13083753,132.44,132.41,1.99999999]
[1763574746998,27.90978769,132.46,132.41,1.99999999]
[1763574747202,26.36040889,132.46,132.41,3.81999999]
[1763574747403,7.13083753,132.43,132.41,3.81999999]
[1763574748228,0.69,132.45,132.41,1.82]
[1763574748233,7.13083753,132.42,132.41,1.82]
[1763574748427,7.13083753,132.42,132.4,1.99999999]
[1763574748428,14.68256687,132.42,132.4,1.99999999]
[1763574748612,14.68256687,132.42,132.39,1.99999999]
[1763574748613,7.82083753,132.41,132.39,1.99999999]
[1763574748932,7.13083753,132.4,132.39,1.99999999]
[1763574749506,7.13083753,132.41,132.39,1.99999999]
[1763574749926,7.13083753,132.4,132.38,1.99999999]
[1763574750613,7.82083753,132.39,132.36,1.99999999]
[1763574750908,7.13083753,132.37,132.34,1.99999999]
[1763574751111,25.25179753,132.37,132.34,1.99999999]
[1763574751309,7.13083753,132.37,132.35,1.99999999]
[1763574751633,25.25179753,132.38,132.35,1.99999999]
[1763574751930,7.13083753,132.38,132.37,1.99999999]
[1763574752139,7.13083753,132.38,132.36,1.99999999]
[1763574752632,7.13083753,132.38,132.37,1.99999999]
[1763574753330,7.13083753,132.42,132.39,1.99999999]
[1763574753535,7.13083753,132.42,132.4,1.99999999]
[1763574753734,7.13083753,132.41,132.39,1.99999999]
[1763574753910,7.13083753,132.41,132.37,7.13083753]
[1763574753911,7.13083753,132.4,132.37,1.99999999]
[1763574754116,7.13083753,132.39,132.37,1.99999999]
[1763574754524,14.6848487,132.38,132.36,3.81999999]
[1763574754723,14.6848487,132.38,132.37,1.99999999]
[1763574754939,14.6848487,132.38,132.36,3.81999999]
[1763574755519,14.6848487,132.38,132.36,1.82]
[1763574755520,7.13083753,132.37,132.36,1.82]
[1763574755742,7.13083753,132.4,132.38,1.99999999]
[1763574755919,7.13083753,132.39,132.38,1.99999999]
[1763574756124,7.13083753,132.39,132.37,1.82]
[1763574756320,7.13083753,132.38,132.37,1.82]
[1763574756520,7.55401117,132.38,132.37,3.81999999]
[1763574756722,7.55401117,132.38,132.37,1.82]
[1763574756939,14.6848487,132.38,132.37,3.81999999]
[1763574757134,14.6848487,132.38,132.34,88.01179753]
[1763574757135,14.6848487,132.38,132.34,64.75999999]
[1763574757339,14.6848487,132.38,132.36,1.82]
[1763574757646,33.56987664,132.38,132.37,1.99999999]
[1763574758059,33.56987664,132.38,132.35,1.99999999]
[1763574758227,7.13083753,132.37,132.36,1.82]
[1763574758653,8.24309555,132.4,132.36,1.82]
[1763574758833,7.13083753,132.39,132.37,1.99999999]
[1763574759633,26.43527077,132.4,132.37,1.99999999]
[1763574759835,26.43527077,132.4,132.36,8.95083753]
[1763574759836,7.13083753,132.38,132.36,3.81999999]
[1763574760039,0.69,132.45,132.42,1.99999999]
[1763574760243,7.55058894,132.44,132.42,1.82]
[1763574760453,14.68142647,132.44,132.42,1.82]
[1763574760657,7.13083753,132.43,132.4,1.99999999]
[1763574760845,7.13083753,132.42,132.41,1.82]
[1763574761040,7.13083753,132.43,132.41,3.81999999]
[1763574761235,7.13083753,132.43,132.41,1.82]
[1763574761436,7.55058894,132.44,132.42,0.66]
[1763574761634,28.52335012,132.56,132.44,1.99999999]
[1763574761635,0.69,132.5,132.44,1.99999999]
[1763574761937,7.54603078,132.52,132.44,1.99999999]
[1763574761938,14.67686831,132.52,132.49,1.99999999]
[1763574762153,7.54603078,132.52,132.49,3.81999999]
[1763574762553,14.67686831,132.52,132.49,3.81999999]
[1763574762865,27.10110774,132.52,132.5,1.82]
[1763574763055,7.13083753,132.51,132.5,1.82]
[1763574763260,7.13083753,132.51,132.48,1.99999999]
[1763574763563,7.13083753,132.49,132.48,1.82]
[1763574764370,7.13083753,132.49,132.47,3.81999999]
[1763574764566,7.13083753,132.5,132.47,3.81999999]
[1763574764867,7.13083753,132.49,132.47,3.81999999]
[1763574765867,7.13083753,132.49,132.48,1.99999999]
[1763574766060,7.13083753,132.49,132.47,1.82]
[1763574766258,7.54716981,132.5,132.48,1.99999999]
[1763574766461,14.67800734,132.5,132.47,3.81999999]
[1763574766762,18.12096,132.53,132.49,1.99999999]
[1763574766945,7.13083753,132.51,132.48,2.65999999]
[1763574767146,7.13083753,132.51,132.49,1.99999999]
[1763574767669,7.13083753,132.51,132.49,1.49999999]
[1763574767844,7.54716981,132.5,132.49,1.49999999]
[1763574768048,7.54662832,132.51,132.49,1.49999999]
[1763574768367,7.54617326,132.52,132.49,1.49999999]
[1763574768567,37.71513645,132.58,132.51,1.49999999]
[1763574768568,0.69,132.58,132.51,1.49999999]
[1763574768772,7.13083753,132.54,132.52,1.82]
[1763574769347,46.33812418,132.59,132.52,1.82]
[1763574769348,7.13083753,132.53,132.52,1.82]
[1763574769546,7.82083753,132.53,132.5,1.82]
[1763574769847,14.67686831,132.52,132.51,1.49999999]
[1763574770063,14.67686831,132.52,132.5,1.49999999]
[1763574770258,14.67686831,132.52,132.51,1.82]
[1763574770779,7.54603078,132.52,132.51,1.82]
[1763574770979,14.67686831,132.52,132.51,1.82]
[1763574771455,14.67652029,132.53,132.51,1.82]
[1763574771648,7.13083753,132.52,132.51,1.82]
[1763574772069,14.67686831,132.52,132.51,1.82]
[1763574772560,33.54194527,132.52,132.5,1.82]
[1763574773482,33.54194527,132.52,132.49,1.49999999]
[1763574773483,7.13083753,132.51,132.49,1.49999999]
[1763574773784,7.13083753,132.5,132.49,3.31999999]
[1763574774078,14.67800734,132.5,132.49,3.31999999]
[1763574774649,14.67800734,132.5,132.49,1.49999999]
[1763574774983,14.67800734,132.5,132.49,3.31999999]
[1763574775371,19.52305273,132.54,132.49,3.31999999]
[1763574775572,7.13083753,132.51,132.49,3.31999999]
[1763574775870,7.13083753,132.5,132.49,1.82]
[1763574776061,7.13083753,132.5,132.49,3.31999999]
[1763574776262,0.66,132.53,132.49,3.31999999]
[1763574776263,7.13083753,132.51,132.49,3.31999999]
[1763574776479,0.66,132.53,132.49,3.31999999]
[1763574776695,7.13083753,132.52,132.49,3.31999999]
[1763574776876,7.13083753,132.51,132.49,3.31999999]
[1763574777449,7.54716981,132.5,132.49,3.31999999]
[1763574777983,7.13083753,132.53,132.5,1.49999999]
[1763574778191,7.13083753,132.54,132.51,1.49999999]
[1763574778485,9.78882769,132.59,132.51,2.14999999]
[1763574778486,18.12096,132.56,132.51,2.14999999]
[1763574778793,7.13083753,132.55,132.52,1.49999999]
[1763574778964,7.13083753,132.55,132.52,3.31999999]
[1763574778965,7.13083753,132.54,132.52,3.31999999]
[1763574779492,7.5454614,132.53,132.52,3.31999999]
[1763574779863,7.5454614,132.53,132.52,1.82]
[1763574780062,7.54510325,132.54,132.52,25.72463611]
[1763574780263,18.12096,132.57,132.53,0.65]
[1763574780490,0.66,132.64,132.59,1.49999999]
[1763574780665,0.66,132.64,132.59,3.31999999]
[1763574780872,7.13083753,132.63,132.59,11.10083752]
[1763574781067,7.13083753,132.65,132.59,11.10083752]
[1763574781373,0.1,132.66,132.59,13.75882768]
[1763574781576,0.1,132.66,132.61,1.49999999]
[1763574781759,7.13083753,132.65,132.62,1.49999999]
[1763574781966,7.13083753,132.63,132.62,1.49999999]
[1763574782166,7.13083753,132.63,132.62,1.82]
[1763574782397,7.79083753,132.63,132.58,1.49999999]
[1763574782603,7.13083753,132.61,132.6,1.49999999]
[1763574782901,7.13083753,132.61,132.59,3.31999999]
[1763574783327,18.12096,132.65,132.57,7.13083753]
[1763574783328,7.79083753,132.6,132.57,1.49999999]
[1763574783501,7.13083753,132.58,132.57,3.31999999]
[1763574783707,7.54204691,132.59,132.57,3.96999999]
[1763574784017,14.67288444,132.59,132.57,3.31999999]
[1763574784534,0.66,132.64,132.58,0.65]
[1763574784700,9.88882769,132.66,132.58,2.14999999]
[1763574784701,7.13083753,132.61,132.58,2.14999999]
[1763574785021,7.13083753,132.61,132.59,1.49999999]
[1763574785227,7.13083753,132.6,132.59,1.49999999]
[1763574785519,14.67231565,132.6,132.57,1.82]
[1763574785744,26.39517344,132.6,132.58,2.14999999]
[1763574785936,7.13083753,132.61,132.59,1.49999999]
[1763574786137,7.13083753,132.61,132.57,8.95083753]
[1763574786138,25.6595955,132.65,132.6,2.14999999]
[1763574786427,14.76912097,132.66,132.62,1.49999999]
[1763574786751,7.63828344,132.66,132.65,1.49999999]
[1763574787028,0.1,132.66,132.65,3.31999999]
[1763574787233,0.1,132.66,132.65,11.10083752]
[1763574787595,0.1,132.66,132.65,3.96999999]
[1763574788024,0.1,132.66,132.65,3.31999999]
[1763574788327,0.1,132.66,132.65,3.96999999]
[1763574788694,7.23083753,132.66,132.64,1.49999999]
[1763574788900,7.23083753,132.66,132.65,1.82]
[1763574789399,7.63806723,132.66,132.65,1.82]
[1763574789728,14.76890476,132.66,132.65,1.82]
[1763574790031,34.27407285,132.66,132.64,1.82]
[1763574790331,14.76890476,132.66,132.64,2.47]
[1763574790535,7.63806723,132.66,132.64,3.96999999]
[1763574791143,7.63806723,132.66,132.64,3.31999999]
[1763574791451,7.63806723,132.66,132.59,27.90978769]
[1763574791452,7.53920386,132.64,132.63,1.49999999]
[1763574792436,7.23083753,132.66,132.63,1.49999999]
[1763574792630,14.76927211,132.66,132.63,1.49999999]
[1763574792946,11.8028959,132.65,132.62,3.31999999]
[1763574793236,7.63843458,132.66,132.63,13.29289589]
[1763574793448,0.1,132.66,132.65,12.64289589]
[1763574793743,0.1,132.66,132.65,14.46289589]
[1763574793952,0.1,132.66,132.65,15.11289589]
[1763574794123,0.1,132.66,132.65,3.96999999]
[1763574794313,0.1,132.66,132.65,3.31999999]
[1763574797916,11.9028959,132.66,132.64,1.49999999]
[1763574798111,11.9028959,132.66,132.65,1.82]
[1763574798333,11.9028959,132.66,132.63,1.82]
[1763574798539,11.1428959,132.64,132.63,1.82]
[1763574798743,11.8028959,132.65,132.63,1.82]
[1763574798927,0.1,132.66,132.63,3.96999999]
[1763574799136,0.1,132.66,132.64,1.49999999]
[1763574799639,18.78096313,132.66,132.64,1.49999999]
[1763574799845,11.1428959,132.65,132.64,1.49999999]
[1763574800020,11.1428959,132.65,132.63,3.31999999]
[1763574800339,11.1428959,132.64,132.61,1.49999999]
[1763574800517,11.1428959,132.64,132.59,21.61172359]
[1763574800518,11.1428959,132.64,132.62,3.31999999]
[1763574800714,11.1428959,132.65,132.62,3.31999999]
[1763574801044,11.1428959,132.63,132.62,1.82]
[1763574801245,11.1428959,132.63,132.58,1.49999999]
[1763574801545,82.97453151,132.66,132.61,1.49999999]
[1763574801728,11.1428959,132.64,132.62,1.49999999]
[1763574801930,11.1428959,132.63,132.62,1.49999999]
[1763574802736,11.1428959,132.64,132.62,1.49999999]
[1763574802937,0.68,132.65,132.62,1.49999999]
[1763574803241,44.60419532,132.66,132.62,1.49999999]
[1763574803242,0.1,132.66,132.65,1.49999999]
[1763574803645,0.1,132.66,132.65,2.17999999]
[1763574804549,0.1,132.66,132.65,1.49999999]
[1763574804729,0.1,132.66,132.65,23.11172358]
[1763574805123,0.1,132.66,132.65,30.65035908]
[1763574805450,0.1,132.66,132.65,23.11172358]
[1763574806855,0.1,132.66,132.65,4.03999999]
[1763574807958,0.1,132.66,132.65,3.31999999]
[1763574808141,0.78,132.66,132.65,1.49999999]
[1763574808338,11.9228959,132.66,132.65,1.49999999]
[1763574808960,11.9228959,132.66,132.64,1.82]
[1763574809136,11.1428959,132.65,132.64,3.31999999]
[1763574809766,18.6815314,132.65,132.64,3.31999999]
[1763574810263,7.63806723,132.66,132.65,1.49999999]
[1763574810467,0.1,132.66,132.65,1.49999999]
[1763574810764,8.31806723,132.66,132.64,1.82]
[1763574810961,11.1428959,132.65,132.63,1.49999999]
[1763574811161,11.1428959,132.65,132.59,0.72]
[1763574811162,11.1428959,132.64,132.62,3.31999999]
[1763574811338,11.1428959,132.63,132.62,3.31999999]
[1763574811542,26.48323532,132.66,132.62,4.03999999]
[1763574811857,11.2428959,132.66,132.64,1.49999999]
[1763574812051,11.1428959,132.65,132.64,1.49999999]
[1763574812359,11.8228959,132.65,132.61,3.31999999]
[1763574812543,11.1428959,132.62,132.61,1.82]
[1763574812744,29.3638559,132.66,132.61,1.82]
[1763574812745,0.1,132.66,132.62,1.49999999]
[1763574812953,11.8228959,132.65,132.63,1.49999999]
[1763574813167,0.68,132.65,132.64,1.82]
[1763574813885,7.5386355,132.65,132.64,1.82]
[1763574814070,8.2186355,132.65,132.64,1.82]
[1763574814273,19.3615314,132.65,132.64,1.82]
[1763574814980,18.6815314,132.65,132.64,1.82]
[1763574815177,0.1,132.66,132.64,4.03999999]
[1763574815380,7.63806914,132.66,132.65,1.49999999]
[1763574815562,11.2428959,132.66,132.65,1.49999999]
[1763574815759,19.46096313,132.66,132.62,3.31999999]
[1763574815981,8.31806723,132.66,132.63,1.49999999]
[1763574816182,11.1428959,132.65,132.63,1.49999999]
[1763574816390,11.1428959,132.65,132.64,1.49999999]
[1763574816568,11.8228959,132.65,132.62,3.31999999]
[1763574816788,11.1428959,132.65,132.63,1.49999999]
[1763574816990,11.1428959,132.64,132.63,1.49999999]
[1763574817492,11.1428959,132.65,132.64,1.49999999]
[1763574817671,11.8228959,132.65,132.64,1.49999999]
[1763574817870,19.3615314,132.65,132.64,1.49999999]
[1763574818097,18.6815314,132.65,132.64,1.49999999]
[1763574818388,19.3615314,132.65,132.64,1.49999999]
[1763574818796,38.20812016,132.65,132.62,1.49999999]
[1763574818974,38.20812016,132.65,132.61,3.31999999]
[1763574818975,26.38522426,132.65,132.61,3.31999999]
[1763574819291,11.1428959,132.63,132.62,1.49999999]
[1763574819477,11.1428959,132.63,132.61,3.31999999]
[1763574819674,11.8228959,132.62,132.6,1.49999999]
[1763574819876,7.54090943,132.61,132.6,1.49999999]
[1763574820081,18.68380533,132.61,132.59,3.31999999]
[1763574820386,11.1428959,132.6,132.58,1.49999999]
[1763574820612,11.1428959,132.59,132.58,1.49999999]
[1763574820983,11.8228959,132.59,132.57,3.31999999]
[1763574821286,19.36380533,132.61,132.58,1.49999999]
[1763574821486,0.68,132.61,132.59,1.49999999]
[1763574821786,18.68437402,132.6,132.59,1.49999999]
[1763574822484,7.5413416,132.61,132.59,1.49999999]
[1763574822686,11.1428959,132.63,132.59,2.21999999]
[1763574822889,11.1428959,132.63,132.6,2.21999999]
[1763574823086,11.1428959,132.63,132.61,1.82]
[1763574823307,11.8228959,132.62,132.61,1.82]
[1763574823496,11.8228959,132.62,132.59,3.31999999]
[1763574823697,11.1428959,132.6,132.59,3.31999999]
[1763574823988,18.68437402,132.6,132.59,3.31999999]
[1763574824187,11.1428959,132.6,132.59,3.31999999]
[1763574824592,18.68437402,132.6,132.59,1.82]
[1763574825208,18.68437402,132.6,132.58,1.49999999]
[1763574825395,11.1428959,132.59,132.58,1.82]
[1763574825592,11.8228959,132.59,132.56,1.49999999]
[1763574825794,9.78882769,132.65,132.56,1.49999999]
[1763574825795,20.62096,132.62,132.57,0.72]
[1763574826108,11.1428959,132.6,132.58,1.49999999]
[1763574826882,11.1428959,132.61,132.58,1.49999999]
[1763574827115,37.53431969,132.62,132.59,3.31999999]
[1763574827419,37.53431969,132.62,132.61,1.49999999]
[1763574827621,0.68,132.61,132.58,1.49999999]
[1763574827920,18.85085205,132.62,132.59,4.03999999]
[1763574828087,7.54094506,132.61,132.6,1.49999999]
[1763574828288,19.36384096,132.61,132.6,1.49999999]
[1763574828516,18.68384096,132.61,132.6,1.49999999]
[1763574829028,7.54094506,132.61,132.6,1.49999999]
[1763574829195,18.68384096,132.61,132.6,1.49999999]
[1763574829923,7.54094506,132.61,132.6,1.49999999]
[1763574830914,11.8528959,132.61,132.57,1.49999999]
[1763574831116,11.1428959,132.59,132.58,1.49999999]
[1763574831317,11.1428959,132.59,132.52,22.16726823]
[1763574831318,11.1428959,132.59,132.56,1.49999999]
[1763574831521,11.1428959,132.59,132.48,29.4628959]
[1763574831522,11.1428959,132.57,132.54,3.31999999]
[1763574831727,11.1428959,132.55,132.54,1.82]
[1763574831911,11.1428959,132.55,132.54,3.31999999]
[1763574832224,11.1428959,132.55,132.54,1.82]
[1763574832393,11.1428959,132.55,132.54,3.31999999]
[1763574832814,18.68664967,132.56,132.54,3.31999999]
[1763574833113,18.68664967,132.56,132.55,1.49999999]
[1763574833901,18.68664967,132.56,132.54,1.82]
[1763574834101,11.1428959,132.56,132.55,1.49999999]
[1763574834316,18.12096,132.59,132.55,1.49999999]
[1763574834317,11.1428959,132.57,132.55,2.19999999]
[1763574835602,11.1428959,132.57,132.55,1.49999999]
[1763574835801,45.22835405,132.59,132.55,1.49999999]
[1763574836018,18.68664967,132.56,132.55,1.49999999]
[1763574836728,11.1428959,132.56,132.54,1.82]
[1763574837111,11.1428959,132.56,132.54,3.31999999]
[1763574837509,18.12096,132.59,132.55,0.7]
[1763574837713,11.1428959,132.58,132.56,1.49999999]
[1763574838225,7.54318473,132.57,132.56,1.49999999]
[1763574838419,7.54276187,132.58,132.56,2.19999999]
[1763574838625,19.56257185,132.61,132.57,4.01999999]
[1763574838828,11.1428959,132.59,132.58,1.49999999]
[1763574839515,11.1428959,132.59,132.57,1.49999999]
[1763574839712,11.8528959,132.58,132.55,1.49999999]
[1763574839934,11.8528959,132.58,132.55,3.31999999]
[1763574839935,0.71,132.58,132.55,3.31999999]
[1763574840131,11.1428959,132.57,132.56,1.49999999]
[1763574840512,11.1428959,132.58,132.56,1.49999999]
[1763574840829,26.39520599,132.6,132.57,1.49999999]
[1763574841006,11.1428959,132.58,132.55,3.31999999]
[1763574841205,11.1428959,132.57,132.55,3.31999999]
[1763574841815,0.71,132.58,132.55,3.31999999]
[1763574842117,11.1428959,132.57,132.55,3.31999999]
[1763574842318,7.54375377,132.56,132.55,3.31999999]
[1763574843735,38.25603409,132.56,132.54,1.49999999]
[1763574843909,11.8528959,132.55,132.53,1.49999999]
[1763574844104,11.1428959,132.55,132.53,3.31999999]
[1763574844338,7.5448921,132.54,132.53,3.31999999]
[1763574844541,37.55001827,132.54,132.51,2.19999999]
[1763574844834,11.1428959,132.53,132.52,3.31999999]
[1763574845152,11.1428959,132.53,132.48,0.2]
[1763574845153,11.8528959,132.53,132.48,0.2]
[1763574845307,11.1428959,132.49,132.48,2.02]
[1763574845511,11.1428959,132.5,132.48,2.02]
[1763574845717,11.1428959,132.49,132.48,0.2]
[1763574845917,11.1428959,132.49,132.48,1e-08]
[1763574846228,19.40063535,132.49,132.48,1e-08]
[1763574848037,19.40063535,132.49,132.4,0.2]
[1763574848038,18.12096,132.46,132.4,0.2]
[1763574848242,11.1428959,132.43,132.4,2.72]
[1763574848448,18.12096,132.46,132.4,2.72]
[1763574848632,11.1428959,132.43,132.4,2.72]
[1763574849024,11.1428959,132.44,132.4,2.72]
[1763574849224,11.1428959,132.44,132.4,2.02]
[1763574849225,11.1428959,132.42,132.4,2.02]
[1763574849416,11.1428959,132.41,132.4,2.02]
[1763574849632,26.42506605,132.45,132.4,2.72]
[1763574849828,11.1428959,132.43,132.4,0.9]
[1763574850014,0.71,132.44,132.4,2.72]
[1763574850218,7.55229967,132.41,132.4,2.02]
[1763574850419,11.1428959,132.42,132.4,2.72]
[1763574850420,7.55192776,132.42,132.4,2.72]
[1763574850659,18.69482366,132.42,132.4,2.72]
[1763574850822,8.26110238,132.44,132.4,2.72]